bitfinex/quotes_SOLUSD_20210401
["timestamp","ask_amount","ask_price","bid_price","bid_amount"]
[1617301574432,968.03860718,19.284,18.917,333.51361174]
[1617301575138,108.87754637,19.284,18.921,10.29290355]
[1617301575334,108.87754637,19.284,18.924,10.17469659]
[1617301575534,108.87754637,19.284,18.921,307.09805025]
[1617301575734,108.87754637,19.284,18.922,7.67373767]
[1617301575934,108.87754637,19.284,18.924,283.99465994]
[1617301576135,108.87754637,19.284,18.922,134.65117276]
[1617301576334,108.87754637,19.284,18.922,10.23165023]
[1617301576536,108.87754637,19.284,18.924,283.99465994]
[1617301576735,108.87754637,19.284,18.922,332.61522077]
[1617301576936,108.87754637,19.284,18.922,283.99465994]
[1617301577137,108.87754637,19.284,18.924,283.99465994]
[1617301577336,108.87754637,19.284,18.922,283.99465994]
[1617301577636,108.87754637,19.284,18.924,88.68711397]
[1617301578037,108.87754637,19.284,18.924,195.30754597]
[1617301578237,108.87754637,19.284,18.924,283.99465994]
[1617301588649,7.7457,19.283,18.924,283.99465994]
[1617301589050,116.62324637,19.283,18.924,283.99465994]
[1617301603170,116.62324637,19.283,18.924,295.20575625]
[1617301603670,116.62324637,19.283,18.924,309.14631441]
[1617301604572,116.62324637,19.283,18.924,337.13114089]
[1617301604771,116.62324637,19.283,18.924,311.97948642]
[1617301605473,116.62324637,19.283,18.924,323.18882441]
[1617301605672,116.62324637,19.283,18.924,311.97948642]
[1617301606376,116.62324637,19.283,18.924,323.18580905]
[1617301606577,116.62324637,19.283,18.924,320.38422839]
[1617301606777,116.62324637,19.283,18.924,311.97948642]
[1617301606976,116.62324637,19.283,18.924,283.99465994]
[1617301607178,116.62324637,19.283,18.924,365.03821087]
[1617301609080,116.62324637,19.283,18.924,393.88850791]
[1617301615089,116.62324637,19.283,18.925,26.33428493]
[1617301615489,116.62324637,19.283,18.925,310.32894487]
[1617301616391,116.62324637,19.283,18.925,340.00106597]
[1617301618896,116.62324637,19.283,18.925,695.72334812]
[1617301619096,116.62324637,19.283,18.925,1112.32994735]
[1617301623405,116.62324637,19.283,18.926,40.82400401]
[1617301623605,116.62324637,19.283,18.926,55.38614687]
[1617301623804,116.62324637,19.283,18.926,339.38080681]
[1617301624006,116.62324637,19.283,18.926,327.71680566]
[1617301624305,116.62324637,19.283,18.926,339.35823243]
[1617301624805,116.62324637,19.283,18.926,313.1546628]
[1617301625005,116.62324637,19.283,18.926,324.80183183]
[1617301625407,116.62324637,19.283,18.927,11.61115039]
[1617301625706,116.62324637,19.283,18.927,129.24367563]
[1617301625906,116.62324637,19.283,18.927,339.0428908]
[1617301627310,116.62324637,19.283,18.927,341.42564625]
[1617301629816,116.62324637,19.283,18.928,11.9297592]
[1617301630215,116.62324637,19.283,18.928,443.43877409]
[1617301630513,116.62324637,19.283,18.928,517.34962858]
[1617301630714,116.62324637,19.283,18.928,505.41986938]
[1617301630915,116.62324637,19.283,18.928,517.23206677]
[1617301632316,116.62324637,19.283,18.929,11.86368112]
[1617301632517,116.62324637,19.283,18.929,41.59288113]
[1617301632715,116.62324637,19.283,18.929,340.43004945]
[1617301633618,116.62324637,19.283,18.929,328.56636833]
[1617301633917,116.62324637,19.283,18.929,340.43547612]
[1617301634119,116.62324637,19.283,18.931,11.78666697]
[1617301634320,116.62324637,19.283,18.936,11.57761808]
[1617301634719,116.62324637,19.283,18.936,100.26473205]
[1617301634921,116.62324637,19.283,18.936,324.48164019]
[1617301635119,116.62324637,19.283,18.939,79.178]
[1617301635521,116.62324637,19.283,18.939,363.17265994]
[1617301636120,116.62324637,19.283,18.939,283.99465994]
[1617301637625,116.62324637,19.283,18.939,363.17465994]
[1617301637824,116.62324637,19.283,18.939,374.59729037]
[1617301638425,116.62324637,19.283,18.939,388.87430804]
[1617301638926,116.62324637,19.283,18.94,11.38397788]
[1617301639125,116.62324637,19.283,18.939,388.86909774]
[1617301639326,116.62324637,19.283,18.94,283.99465994]
[1617301639627,116.62324637,19.283,18.939,417.43058853]
[1617301639926,116.62324637,19.283,18.94,195.30754597]
[1617301640228,116.62324637,19.283,18.939,417.43058853]
[1617301640427,116.62324637,19.283,18.94,88.68711397]
[1617301640630,116.62324637,19.283,18.94,295.38657598]
[1617301640829,116.62324637,19.283,18.94,220.93634693]
[1617301641131,116.62324637,19.283,18.94,309.6234609]
[1617301641328,116.62324637,19.283,18.941,135.68580962]
[1617301641729,116.62324637,19.283,18.941,419.68046956]
[1617301641929,116.62324637,19.283,18.941,283.99465994]
[1617301642730,116.62324637,19.283,18.942,11.25153925]
[1617301642930,116.62324637,19.283,18.943,11.30148681]
[1617301643329,116.62324637,19.283,18.942,309.49118558]
[1617301643530,116.62324637,19.283,18.943,283.99465994]
[1617301643732,116.62324637,19.283,18.942,309.49118558]
[1617301644131,116.62324637,19.283,18.943,283.99465994]
[1617301644330,116.62324637,19.283,18.943,25.56790038]
[1617301644633,116.62324637,19.283,18.943,298.19904904]
[1617301644831,116.62324637,19.283,18.943,309.52793609]
[1617301646433,116.62324637,19.283,18.943,338.01619597]
[1617301647734,116.62324637,19.283,18.943,394.70486859]
[1617301648333,116.62324637,19.283,18.944,11.27405256]
[1617301648733,116.62324637,19.283,18.944,283.99465994]
[1617301650335,116.62324637,19.283,18.945,25.13762145]
[1617301650738,116.62324637,19.283,18.945,309.13228139]
[1617301651036,116.62324637,19.283,18.945,297.96000519]
[1617301651436,116.62324637,19.283,18.945,283.99465994]
[1617301652638,116.62324637,19.283,18.945,309.1725479]
[1617301652839,116.62324637,19.283,18.945,297.98237547]
[1617301653941,116.62324637,19.283,18.945,283.99465994]
[1617301656448,116.62324637,19.283,18.945,295.21972114]
[1617301656647,116.62324637,19.283,18.945,283.99465994]
[1617301657049,116.62324637,19.283,18.946,11.1969746]
[1617301657549,116.62324637,19.283,18.946,309.16738661]
[1617301658449,116.62324637,19.283,18.946,337.13072273]
[1617301658651,116.62324637,19.283,18.947,25.12712527]
[1617301659051,116.62324637,19.283,18.947,309.12178521]
[1617301659252,116.62324637,19.283,18.947,297.95417398]
[1617301659852,116.62324637,19.283,18.947,283.99465994]
[1617301660553,116.62324637,19.283,18.947,295.09174369]
[1617301660754,116.62324637,19.283,18.947,322.7993449]
[1617301660953,116.62324637,19.283,18.947,336.60714136]
[1617301661255,116.62324637,19.283,18.948,11.03140803]
[1617301661654,116.62324637,19.283,18.948,295.02606797]
[1617301662155,116.62324637,19.283,18.948,308.98079863]
[1617301662656,116.62324637,19.283,18.949,11.1706118]
[1617301663057,116.62324637,19.283,18.95,30.57881157]
[1617301663256,116.62324637,19.283,18.95,38.91848745]
[1617301663458,116.62324637,19.283,18.951,24.95659461]
[1617301663658,116.62324637,19.283,18.952,11.04538268]
[1617301664059,116.62324637,19.283,18.953,11.00504605]
[1617301664259,116.62324637,19.283,18.952,419.31281635]
[1617301664559,116.62324637,19.283,18.953,283.99465994]
[1617301664960,116.62324637,19.283,18.952,283.99465994]
[1617301665162,116.62324637,19.283,18.953,195.30754597]
[1617301665360,116.62324637,19.283,18.953,283.99465994]
[1617301665560,116.62324637,19.283,18.952,283.99465994]
[1617301665759,116.62324637,19.283,18.953,195.30754597]
[1617301665961,116.62324637,19.283,18.953,283.99465994]
[1617301666162,116.62324637,19.283,18.952,283.99465994]
[1617301666365,116.62324637,19.283,18.953,195.30754597]
[1617301666562,116.62324637,19.283,18.953,283.99465994]
[1617301671668,116.62324637,19.283,18.953,390.51968232]
[1617301672769,116.62324637,19.283,18.953,469.63168232]
[1617301673272,116.62324637,19.283,18.954,10.92063575]
[1617301673672,116.62324637,19.283,18.954,294.91529569]
[1617301673871,116.62324637,19.283,18.954,335.85443335]
[1617301675472,116.62324637,19.283,18.955,10.88883227]
[1617301675973,116.62324637,19.283,18.957,10.81041585]
[1617301676172,116.62324637,19.283,18.958,10.8063144]
[1617301676372,116.62324637,19.283,18.958,24.2425246]
[1617301676573,116.62324637,19.283,18.958,51.11494501]
[1617301676773,116.62324637,19.283,18.958,324.30329055]
[1617301676973,116.62324637,19.283,18.958,335.05378604]
[1617301677371,116.62324637,19.283,18.958,442.3225148]
[1617301677572,116.62324637,19.283,18.959,77.73513461]
[1617301677773,116.62324637,19.283,18.959,67.01304708]
[1617301677972,116.62324637,19.283,18.959,351.00770702]
[1617301678674,116.62324637,19.283,18.959,337.6050976]
[1617301680675,116.62324637,19.283,18.961,10.74588757]
[1617301680876,116.62324637,19.283,18.96,10.77180759]
[1617301681076,116.62324637,19.283,18.961,283.99465994]
[1617301681384,116.62324637,19.283,18.96,283.99465994]
[1617301681878,116.62324637,19.283,18.961,283.99465994]
[1617301682080,116.62324637,19.283,18.961,195.30754597]
[1617301682279,116.62324637,19.283,18.961,283.99465994]
[1617301685483,116.62324637,19.283,18.961,294.77278481]
[1617301685783,116.62324637,19.283,18.961,283.99465994]
[1617301686183,116.62324637,19.283,18.961,294.79107714]
[1617301686884,116.62324637,19.283,18.961,308.3009022]
[1617301687686,116.62324637,19.283,18.962,10.79687545]
[1617301687885,116.62324637,19.283,18.964,10.70092572]
[1617301688086,116.62324637,19.283,18.964,24.10664645]
[1617301688288,116.62324637,19.283,18.964,50.91808791]
[1617301688486,116.62324637,19.283,18.964,334.91274785]
[1617301688887,116.62324637,19.283,18.964,324.21182213]
[1617301689289,116.62324637,19.283,18.964,283.99465994]
[1617301709920,116.62324637,19.283,18.964,295.02516085]
[1617301710120,116.62324637,19.283,18.964,336.39174844]
[1617301711422,116.62324637,19.283,18.965,10.96635336]
[1617301711623,116.62324637,19.283,18.964,336.33122616]
[1617301711824,116.62324637,19.283,18.965,283.99465994]
[1617301712224,116.62324637,19.283,18.966,10.94597136]
[1617301712624,116.62324637,19.283,18.966,161.22448201]
[1617301712825,116.62324637,19.283,18.966,828.24249395]
[1617301713224,116.62324637,19.283,18.966,817.29652259]
[1617301713825,116.62324637,19.283,18.966,803.6348398]
[1617301714026,116.62324637,19.283,18.966,814.55894692]
[1617301714226,116.62324637,19.283,18.967,10.89100121]
[1617301714427,116.62324637,19.283,18.966,814.53163009]
[1617301714627,116.62324637,19.283,18.967,283.99465994]
[1617301714827,116.62324637,19.283,18.967,126.66431203]
[1617301715026,116.62324637,19.283,18.967,40.68985507]
[1617301715227,116.62324637,19.283,18.967,235.99740104]
[1617301715427,116.62324637,19.283,18.969,10.80534837]
[1617301715727,116.62324637,19.283,18.969,283.99465994]
[1617301749780,116.62324637,19.283,18.969,295.04628455]
[1617301749979,116.62324637,19.283,18.969,350.30255469]
[1617301750381,116.62324637,19.283,18.969,364.11352347]
[1617301750781,116.62324637,19.283,18.969,353.06189886]
[1617301751183,116.62324637,19.283,18.969,391.59339024]
[1617301752285,116.62324637,19.283,18.969,380.58439271]
[1617301752583,116.62324637,19.283,18.969,366.77342393]
[1617301753486,116.62324637,19.283,18.969,339.25093008]
[1617301755888,116.62324637,19.283,18.969,283.99465994]
[1617301797451,7.7457,19.283,18.962,12.25421527]
[1617301798051,7.7457,19.283,18.962,27.59039686]
[1617301798652,7.7457,19.283,18.962,394.13940953]
[1617301799052,7.7457,19.283,18.962,424.76891897]
[1617301799256,7.7457,19.354,18.962,424.76891897]
[1617301801458,7.7457,19.354,18.963,58.11757289]
[1617301801658,7.7457,19.354,18.963,45.88229438]
[1617301802562,7.7457,19.354,18.963,30.58819625]
[1617301803060,7.7457,19.354,18.963,42.8624533]
[1617301803760,7.7457,19.354,18.963,58.21720828]
[1617301806967,7.7457,19.354,18.963,48.29968018]
[1617301807168,7.7457,19.354,18.963,60.6162459]
[1617301807369,16.22630172,19.354,18.963,60.6162459]
[1617301808570,16.22630172,19.354,18.963,122.2950508]
[1617301810574,104.17981201,19.354,18.963,210.5396143]
[1617301810777,104.17981201,19.354,18.964,500.47980547]
[1617301810975,104.17981201,19.354,18.964,624.6588977]
[1617301811175,104.17981201,19.354,18.964,952.94875162]
[1617301811376,104.17981201,19.354,18.964,828.76965939]
[1617301812375,104.17981201,19.354,18.965,27.41470266]
[1617301812675,104.17981201,19.354,18.965,221.77734464]
[1617301812877,104.17981201,19.354,18.965,310.02190814]
[1617301813178,104.17981201,19.354,18.968,12.06112084]
[1617301813379,104.17981201,19.354,18.967,282.60720548]
[1617301813579,104.17981201,19.354,18.968,194.36264198]
[1617301813780,104.17981201,19.354,18.968,282.60720548]
[1617301813978,104.17981201,19.354,18.967,282.60720548]
[1617301814178,104.17981201,19.354,18.968,194.36264198]
[1617301814378,104.17981201,19.354,18.968,282.60720548]
[1617301814579,104.17981201,19.354,18.967,282.60720548]
[1617301814879,104.17981201,19.354,18.968,194.36264198]
[1617301815079,104.17981201,19.354,18.968,282.60720548]
[1617301815279,104.17981201,19.354,18.967,282.60720548]
[1617301815479,104.17981201,19.354,18.968,194.36264198]
[1617301815680,104.17981201,19.354,18.968,282.60720548]
[1617301815882,104.17981201,19.354,18.967,282.60720548]
[1617301816380,104.17981201,19.354,18.968,282.60720548]
[1617301816579,104.17981201,19.354,18.967,282.60720548]
[1617301816780,104.17981201,19.354,18.968,282.60720548]
[1617301817180,104.17981201,19.354,18.967,282.60720548]
[1617301817383,104.17981201,19.354,18.968,282.60720548]
[1617301817682,104.17981201,19.354,18.968,88.2445635]
[1617301817881,104.17981201,19.354,18.967,282.60720548]
[1617301818081,104.17981201,19.354,18.968,194.36264198]
[1617301818282,104.17981201,19.354,18.968,282.60720548]
[1617301820185,104.17981201,19.354,18.985,0.001]
[1617301820584,104.17981201,19.354,18.985,194.36364198]
[1617301820885,104.17981201,19.354,18.985,282.60820548]
[1617301868347,104.17981201,19.354,18.985,294.30113971]
[1617301868547,104.17981201,19.354,18.985,282.60820548]
[1617301869849,104.17981201,19.354,18.986,11.73622625]
[1617301870052,104.17981201,19.354,18.987,55.5013378]
[1617301870450,104.17981201,19.354,18.987,462.14122032]
[1617301870650,104.17981201,19.354,18.987,338.10854328]
[1617301871050,104.17981201,19.354,18.988,26.30876367]
[1617301871553,104.17981201,19.354,18.989,11.62490571]
[1617301871953,104.17981201,19.354,18.989,294.23211119]
[1617301872149,104.17981201,19.354,18.99,11.60153363]
[1617301872354,104.17981201,19.354,18.99,135.61738086]
[1617301872554,104.17981201,19.354,18.99,461.60116151]
[1617301872749,104.17981201,19.354,18.991,135.54738006]
[1617301872951,104.17981201,19.354,18.99,337.53692717]
[1617301873350,104.17981201,19.354,18.991,88.2445635]
[1617301873552,104.17981201,19.354,18.991,282.60720548]
[1617301873750,104.17981201,19.354,18.99,395.29844178]
[1617301873951,104.17981201,19.354,18.991,88.2445635]
[1617301874152,104.17981201,19.354,18.991,282.60720548]
[1617301874350,104.17981201,19.354,18.991,194.36264198]
[1617301874649,104.17981201,19.354,18.991,282.60720548]
[1617301875050,104.17981201,19.354,18.991,294.12885288]
[1617301875553,104.17981201,19.354,18.991,282.60720548]
[1617301877155,104.17981201,19.354,18.991,337.04793485]
[1617301877956,104.17981201,19.354,18.991,325.58672866]
[1617301878558,104.17981201,19.354,18.991,311.26022093]
[1617301879362,104.17981201,19.354,18.991,282.60720548]
[1617301880459,104.17981201,19.354,18.991,293.98697968]
[1617301880760,104.17981201,19.354,18.991,308.20386879]
[1617301881462,104.17981201,19.354,18.991,296.82409459]
[1617301881660,104.17981201,19.354,18.991,282.60720548]
[1617301884566,104.17981201,19.354,18.991,293.66567249]
[1617301884867,104.17981201,19.354,18.991,282.60720548]
[1617301889972,104.17981201,19.354,18.999,78.93]
[1617301890175,104.17981201,19.354,19.006,10.50732037]
[1617301890372,104.17981201,19.354,19.008,10.43339683]
[1617301890773,104.17981201,19.354,19.01,10.52785467]
[1617301890973,104.17981201,19.354,19.015,49.27306125]
[1617301891172,104.17981201,19.354,19.01,103.68310752]
[1617301891573,104.17981201,19.354,19.015,282.60720548]
[1617301891772,104.17981201,19.354,19.015,194.36264198]
[1617301891972,104.17981201,19.354,19.01,386.25261924]
[1617301892173,104.17981201,19.354,19.015,282.60720548]
[1617301892575,104.17981201,19.354,19.01,335.77802985]
[1617301892775,104.17981201,19.354,19.015,88.2445635]
[1617301892975,104.17981201,19.354,19.015,282.60720548]
[1617301893175,104.17981201,19.354,19.015,194.36264198]
[1617301893376,104.17981201,19.354,19.015,282.60720548]
[1617301929226,104.17981201,19.354,19.015,626.9498903]
[1617301929426,104.17981201,19.354,19.017,10.61446593]
[1617301929628,104.17981201,19.354,19.019,10.55173399]
[1617301929829,104.17981201,19.354,19.02,10.52475364]
[1617301930230,104.17981201,19.354,19.02,49.61805889]
[1617301930430,104.17981201,19.354,19.02,243.98070087]
[1617301930630,104.17981201,19.354,19.02,321.70051073]
[1617301931434,104.17981201,19.354,19.02,308.66940898]
[1617301932436,104.17981201,19.354,19.02,282.60720548]
[1617301942547,104.17981201,19.354,19.02,411.21002885]
[1617301942947,104.17981201,19.354,19.02,400.71183918]
[1617301943546,104.17981201,19.354,19.02,411.20912561]
[1617301944649,104.17981201,19.354,19.02,400.71183918]
[1617301944851,104.17981201,19.354,19.02,387.5891021]
[1617301945049,104.17981201,19.354,19.02,450.61530068]
[1617301945349,104.17981201,19.354,19.02,440.11093425]
[1617301951456,104.17981201,19.354,19.02,387.5891021]
[1617301954662,104.17981201,19.354,19.02,282.60720548]
[1617301957568,103.78330961,19.354,19.02,282.60720548]
[1617301961274,103.78330961,19.354,19.021,10.81085808]
[1617301961474,103.78330961,19.354,19.02,306.98789267]
[1617301961674,103.78330961,19.354,19.021,282.60720548]
[1617301961874,103.78330961,19.354,19.021,293.41760833]
[1617301962076,103.78330961,19.354,19.021,10.81040285]
[1617301962274,103.78330961,19.354,19.021,282.60720548]
[1617301988908,103.78330961,19.354,19.021,284.95826925]
[1617302030460,103.78330961,19.354,19.022,11.99040511]
[1617302030659,103.78330961,19.354,19.023,41.88280428]
[1617302030859,103.78330961,19.354,19.023,29.91628877]
[1617302031261,103.78330961,19.354,19.023,312.52349425]
[1617302031462,103.78330961,19.354,19.023,282.60720548]
[1617302039772,103.78330961,19.354,19.024,11.7872124]
[1617302039972,103.78330961,19.354,19.029,11.62685592]
[1617302040476,103.78330961,19.354,19.03,55.04413163]
[1617302040675,103.78330961,19.354,19.032,69.19500206]
[1617302040878,103.78330961,19.354,19.035,11.41837412]
[1617302041475,103.78330961,19.354,19.035,294.0255796]
[1617302041676,103.78330961,19.354,19.035,308.30606925]
[1617302042278,103.78330961,19.354,19.035,296.88769513]
[1617302042477,103.78330961,19.354,19.035,282.60720548]
[1617302049186,103.78330961,19.354,19.035,88.2445635]
[1617302049785,103.78330961,19.354,19.024,88.2445635]
[1617302058795,103.78330961,19.354,19.024,282.60720548]
[1617302165750,103.78330961,19.354,19.024,284.96938343]
[1617302191884,96.43411201,19.354,19.024,284.96938343]
[1617302218627,96.43411201,19.354,19.032,40.37984119]
[1617302218827,96.43411201,19.354,19.037,11.35257121]
[1617302219030,96.43411201,19.354,19.044,24.98978526]
[1617302219327,96.43411201,19.354,19.046,11.06022005]
[1617302219528,96.43411201,19.354,19.047,11.03235199]
[1617302219729,96.43411201,19.354,19.044,13.88321403]
[1617302219730,96.43411201,19.354,19.045,66.49114514]
[1617302219929,96.43411201,19.354,19.047,282.60720548]
[1617302220330,96.43411201,19.354,19.048,148.36316076]
[1617302220532,96.43411201,19.354,19.05,10.96502796]
[1617302220933,96.43411201,19.354,19.051,38.36387507]
[1617302221132,96.43411201,19.354,19.05,282.60720548]
[1617302221432,96.43411201,19.354,19.051,282.60720548]
[1617302221833,96.43411201,19.354,19.05,282.60720548]
[1617302222034,96.43411201,19.354,19.051,282.60720548]
[1617302222433,96.43411201,19.354,19.05,282.60720548]
[1617302222834,96.43411201,19.354,19.051,282.60720548]
[1617302223035,96.43411201,19.354,19.05,282.60720548]
[1617302223433,96.43411201,19.354,19.051,282.60720548]
[1617302223733,96.43411201,19.354,19.045,55.40928762]
[1617302223734,96.43411201,19.354,19.05,282.60720548]
[1617302223935,96.43411201,19.354,19.051,282.60720548]
[1617302224233,96.43411201,19.354,19.05,282.60720548]
[1617302224633,96.43411201,19.354,19.051,282.60720548]
[1617302224834,96.43411201,19.354,19.05,282.60720548]
[1617302225237,96.43411201,19.354,19.051,282.60720548]
[1617302225436,96.43411201,19.354,19.05,282.60720548]
[1617302225839,96.43411201,19.354,19.051,282.60720548]
[1617302226037,96.43411201,19.354,19.05,282.60720548]
[1617302226339,96.43411201,19.354,19.051,282.60720548]
[1617302226740,96.43411201,19.354,19.05,282.60720548]
[1617302226939,96.43411201,19.354,19.051,282.60720548]
[1617302227240,96.43411201,19.354,19.05,282.60720548]
[1617302227540,96.43411201,19.354,19.051,282.60720548]
[1617302227841,96.43411201,19.354,19.05,282.60720548]
[1617302228239,96.43411201,19.354,19.035,344.09528189]
[1617302228240,96.43411201,19.354,19.051,282.60720548]
[1617302228439,96.43411201,19.354,19.05,282.60720548]
[1617302228740,96.43411201,19.354,19.051,282.60720548]
[1617302229040,96.43411201,19.354,19.05,282.60720548]
[1617302229440,96.43411201,19.354,19.051,282.60720548]
[1617302229741,96.43411201,19.354,19.051,194.36264198]
[1617302230040,96.43411201,19.354,19.051,282.60720548]
[1617302297240,96.43411201,19.354,19.052,3.6668067]
[1617302297642,96.43411201,19.354,19.052,286.27401218]
[1617302309262,7.349197,19.353,19.052,286.27401218]
[1617302309661,103.78330901,19.353,19.052,286.27401218]
[1617302338812,103.78330901,19.353,19.052,288.65140955]
[1617302401386,7.349197,19.353,19.052,6.04420407]
[1617302402388,7.349197,19.395,19.052,6.04420407]
[1617302408293,15.82979872,19.395,19.052,6.04420407]
[1617302411498,103.41190695,19.395,19.052,93.91031285]
[1617302412501,103.41190695,19.395,19.052,287.42829808]
[1617302423513,103.55219755,19.395,19.052,287.42829808]
[1617302433923,103.55219755,19.395,19.052,285.05090071]
[1617302448443,103.55219755,19.395,19.052,91.53291548]
[1617302449543,103.55219755,19.395,19.052,3.6668067]
[1617302452443,103.55219755,19.395,19.046,87.86610878]
[1617302452444,103.55219755,19.395,19.05,3.66717699]
[1617302453545,103.55219755,19.395,19.053,3.6665849]
[1617302454943,103.55219755,19.395,19.039,91.53537516]
[1617302455545,103.55219755,19.395,19.039,3.66926638]
[1617302456147,103.55219755,19.395,19.054,3.66636313]
[1617302457548,103.55219755,19.395,19.036,91.53592405]
[1617302458751,103.55219755,19.395,19.055,3.66614138]
[1617302459853,103.55219755,19.395,19.051,3.66689646]
[1617302461056,103.55219755,19.395,19.056,3.66591965]
[1617302464257,103.55219755,19.395,19.052,91.53278342]
[1617302465558,103.55219755,19.395,19.057,3.66569794]
[1617302466864,103.55219755,19.395,19.053,3.66645285]
[1617302467560,103.55219755,19.395,19.053,91.53256163]
[1617302468963,103.55219755,19.395,19.053,87.86610878]
[1617302469664,103.55219755,19.395,19.052,3.66663062]
[1617302470266,103.55219755,19.395,19.054,3.66623108]
[1617302471670,103.55219755,19.395,19.053,3.66640883]
[1617302473768,103.55219755,19.395,19.038,3.6692829]
[1617302474569,103.55219755,19.395,19.038,91.53539168]
[1617302475071,103.55219755,19.395,19.054,3.66618706]
[1617302476373,103.55219755,19.395,19.046,87.86610878]
[1617302476573,103.55219755,19.395,19.039,3.66906081]
[1617302478577,103.55219755,19.395,19.039,91.53516959]
[1617302478776,103.55219755,19.395,19.039,87.86610878]
[1617302479878,103.55219755,19.395,19.04,3.66883874]
[1617302480477,103.55219755,19.395,19.04,91.53494752]
[1617302486583,103.55219755,19.395,19.04,3.66883874]
[1617302488385,103.55219755,19.395,19.038,3.66920948]
[1617302489691,103.55219755,19.395,19.041,3.6686167]
[1617302490792,103.55219755,19.395,19.037,3.66937286]
[1617302491594,103.55219755,19.395,19.037,91.53548164]
[1617302491995,103.55219755,19.395,19.042,3.66839469]
[1617302493595,103.55219755,19.395,19.042,91.53450347]
[1617302495299,103.55219755,19.395,19.042,87.86610878]
[1617302496297,103.55219755,19.395,19.043,3.6681727]
[1617302496798,103.55219755,19.395,19.043,91.53428148]
[1617302511622,103.55219755,19.395,19.043,285.05226671]
[1617302524141,103.55219755,19.395,19.043,287.4341335]
[1617302531651,103.55219755,19.395,19.043,93.91614827]
[1617302543666,103.55219755,19.395,19.043,287.4341335]
[1617302574132,103.55219755,19.395,19.045,10.14525979]
[1617302574621,103.55219755,19.395,19.046,10.11434531]
[1617302574819,103.55219755,19.395,19.047,22.57585207]
[1617302575021,103.55219755,19.395,19.047,12.54214004]
[1617302575222,103.55219755,19.395,19.047,136.15342668]
[1617302575420,103.55219755,19.395,19.049,9.85541788]
[1617302575820,103.55219755,19.395,19.049,291.23951189]
[1617302576025,103.55219755,19.395,19.049,281.38409401]
[1617302577722,103.55219755,19.395,19.05,3.66681014]
[1617302578123,103.55219755,19.395,19.05,197.18479537]
[1617302578322,103.55219755,19.395,19.05,285.05090415]
[1617302589140,103.52593816,19.395,19.05,285.05090415]
[1617302589540,103.26870333,19.395,19.05,285.05090415]
[1617302629708,103.26870333,19.395,19.053,10.36163053]
[1617302629908,103.26870333,19.395,19.055,10.35079649]
[1617302630209,103.26870333,19.395,19.055,203.86878172]
[1617302630407,103.26870333,19.395,19.055,330.54949398]
[1617302631007,103.26870333,19.395,19.056,10.26341336]
[1617302631308,103.26870333,19.395,19.056,203.78139859]
[1617302631509,103.26870333,19.395,19.056,304.5146108]
[1617302631909,103.26870333,19.395,19.056,308.18025174]
[1617302632108,103.26870333,19.395,19.056,297.91683838]
[1617302632507,103.26870333,19.395,19.056,285.04973495]
[1617302675867,103.26870333,19.395,19.058,23.75290191]
[1617302676069,103.26870333,19.395,19.064,10.31555027]
[1617302676668,103.26870333,19.395,19.064,291.69964428]
[1617302676869,103.26870333,19.395,19.065,172.56979655]
[1617302677270,103.26870333,19.395,19.066,61.70432801]
[1617302677469,103.26870333,19.395,19.067,10.23162021]
[1617302677971,103.26870333,19.395,19.068,10.23018756]
[1617302678171,103.26870333,19.395,19.067,427.90855428]
[1617302678371,103.26870333,19.395,19.067,304.41341605]
[1617302678573,103.26870333,19.395,19.068,87.86610878]
[1617302678772,103.26870333,19.395,19.068,193.51798523]
[1617302679074,103.26870333,19.395,19.067,304.41341605]
[1617302679274,103.26870333,19.395,19.067,330.0752714]
[1617302679475,103.26870333,19.395,19.068,281.38409401]
[1617302682077,103.26870333,19.395,19.069,3.66311263]
[1617302682478,103.26870333,19.395,19.069,197.18109786]
[1617302682681,103.26870333,19.395,19.069,285.04720664]
[1617302701709,103.26870333,19.395,19.069,287.42856132]
[1617302703610,103.26870333,19.395,19.069,93.91057609]
[1617302731651,103.26870333,19.395,19.069,287.42856132]
[1617302748581,103.26870333,19.395,19.069,312.50816409]
[1617302749179,103.26870333,19.395,19.07,11.14273911]
[1617302749679,103.26870333,19.395,19.07,292.52683312]
[1617302749879,103.26870333,19.395,19.07,335.32864873]
[1617302750881,103.26870333,19.395,19.071,25.73098149]
[1617302751283,103.26870333,19.395,19.072,3.66252177]
[1617302751786,103.26870333,19.395,19.072,197.180507]
[1617302751985,103.26870333,19.395,19.072,285.04661578]
[1617302753990,103.26870333,19.395,19.072,296.29926626]
[1617302754288,103.26870333,19.395,19.072,338.49454556]
[1617302754888,103.26870333,19.395,19.075,8.37157841]
[1617302755089,103.26870333,19.395,19.075,11.16210455]
[1617302755291,103.26870333,19.395,19.076,11.11656963]
[1617302755490,103.26870333,19.395,19.078,24.8820273]
[1617302755691,103.26870333,19.395,19.079,11.04773001]
[1617302756192,103.26870333,19.395,19.079,204.56571524]
[1617302756390,103.26870333,19.395,19.079,415.87697505]
[1617302756590,103.26870333,19.395,19.08,3.66097147]
[1617302756992,103.26870333,19.395,19.08,197.1789567]
[1617302757193,103.26870333,19.395,19.08,285.04506548]
[1617302766704,103.26870333,19.395,19.08,296.243541]
[1617302766905,103.26870333,19.395,19.08,285.04506548]
[1617302767304,103.26870333,19.395,19.08,296.23207733]
[1617302767505,103.26870333,19.395,19.08,338.13408707]